[Event "32nd NATO Championship 2022"]
[Site "Tartu"]
[Date "2022.06.28"]
[Round "2.45"]
[White "Jansen, Lyle John"]
[Black "Moulton, Richard"]
[Result "0-1"]
[ECO "A01"]
[WhiteElo "1470"]
[BlackElo "1766"]
[Annotator "NA RC"]
[PlyCount "88"]
[EventDate "2022.06.27"]
[EventType "swiss"]
[EventCountry "EST"]
[SourceTitle "playchess.com"]
[Source "ChessBase"]
[SourceQuality "1"]
[TimeControl "5400+30"]

1. b3 {[%emt 0:00:12]} e5 {[%emt 0:02:04]} 2. Bb2 {[%emt 0:00:46]} Nc6 {[%emt 0:01:05]} 3. Nf3 {[%emt 0:00:41]} d6 {[%emt 0:04:25]} 4. e3 {[%emt 0:00:46]} Bd7 {[%emt 0:07:04]} 5. Bb5 {[%emt 0:01:00]} f5 {[%emt 0:06:58]} 6. O-O {[%emt 0:03:15]} Nf6 {[%emt 0:01:41]} 7. d3 {[%emt 0:01:50]} Qe7 {[%emt 0:03:07]} 8. Nbd2 {[%emt 0:03:22]} O-O-O {[%emt 0:01:26]} 9. Qe2 {[%emt 0:10:28]} Rg8 {[%emt 0:03:36]} 10. a4 {[%emt 0:11:07]} g5 {[%emt 0:04:33]} 11. h3 {[%emt 0:18:36]} g4 {[%emt 0:04:35]} 12. hxg4 {[%emt 0:01:16]} Rxg4 {[%emt 0:02:57]} 13. e4 {[%emt 0:04:28]} Qg7 {[%emt 0:05:33]} 14. g3 {[%emt 0:01:41]} f4 {[%emt 0:02:27]} 15. Nh2 {[%emt 0:06:23]} Rg6 {[%emt 0:02:41]} 16. Kh1 {[%emt 0:04:21]} fxg3 {[%emt 0:02:21]} 17. fxg3 {[%emt 0:00:32]} Rxg3 {[%emt 0:04:56]} 18. Rg1 {[%emt 0:00:25]} Be7 {[%emt 0:07:30]} 19. Qf2 {[%emt 0:02:35]} Rg8 {[%emt 0:06:17]} 20. Bxc6 {[%emt 0:01:20]} Rxg1+ {[%emt 0:05:02]} 21. Rxg1 {[%emt 0:00:36]} Qxg1+ {[%emt 0:00:10]} 22. Qxg1 {[%emt 0:00:08]} Rxg1+ {[%emt 0:00:09]} 23. Kxg1 {[%emt 0:00:07]} Bxc6 {[%emt 0:00:11]} 24. Nc4 {[%emt 0:01:46]} b6 {[%emt 0:01:47]} 25. Bc1 {[%emt 0:02:49]} Bd7 {[%emt 0:02:04]} 26. Nf3 {[%emt 0:00:57]} Bg4 {[%emt 0:05:27]} 27. Kg2 {[%emt 0:01:53]} Kd7 {[%emt 0:00:49]} 28. Ng5 {[%emt 0:00:55]} h5 {[%emt 0:02:01]} 29. Kg3 {[%emt 0:01:44]} Ne8 {[%emt 0:03:21]} 30. Be3 {[%emt 0:01:21]} Bd1 {[%emt 0:00:59]} 31. Na3 {[%emt 0:00:38]} d5 {[%emt 0:02:18]} 32. Nb5 {[%emt 0:06:25]} a6 {[%emt 0:01:08]} 33. Nc3 {[%emt 0:00:35]} Bxc2 {[%emt 0:01:08]} 34. Nxd5 {[%emt 0:02:28]} Bxb3 {[%emt 0:00:29]} 35. Nc3 {[%emt 0:00:51]} Bxg5 {[%emt 0:01:42]} 36. Bxg5 {[%emt 0:00:09]} Bc2 {[%emt 0:00:15]} 37. Kh4 {[%emt 0:01:45]} Bxd3 {[%emt 0:00:33]} 38. Kxh5 {[%emt 0:00:17]} Ng7+ {[%emt 0:00:09]} 39. Kg6 {[%emt 0:00:21]} Ne6 {[%emt 0:00:35]} 40. Bf6 {[%emt 0:00:37]} Nc5 {[%emt 0:00:38]} 41. Kf5 {[%emt 0:01:21]} b5 {[%emt 0:00:59]} 42. axb5 {[%emt 0:00:48]} axb5 {[%emt 0:00:05]} 43. Bxe5 {[%emt 0:00:17]} b4 {[%emt 0:00:14]} 44. Nd5 {[%emt 0:02:04]} Bxe4+ {[%emt 0:00:15]} 0-1

[Event "32nd NATO Championship 2022"]
[Site "Tartu"]
[Date "2022.06.28"]
[Round "3.1"]
[White "Graczyk, Damian"]
[Black "Stein, Robert"]
[Result "0-1"]
[ECO "D31"]
[WhiteElo "2151"]
[BlackElo "2365"]
[Annotator "TA"]
[PlyCount "112"]
[EventDate "2022.06.27"]
[EventType "swiss"]
[EventCountry "EST"]
[SourceTitle "playchess.com"]
[Source "ChessBase"]
[SourceQuality "1"]
[TimeControl "5400+30"]

{[%evp 9,112,18,37,29,24,17,29,25,31,26,20,15,26,26,74,86,68,78,61,28,46,24,25,19,33,8,30,10,22,14,0,-26,-18,-18,0,-40,-36,-123,-131,-210,-229,-229,-234,-225,-229,-238,-216,-221,-193,-199,-199,-194,-192,-192,-172,-193,-193,-193,-193,-200,-193,-195,-192,-193,-176,-175,-168,-176,-175,-210,-210,-213,-176,-219,-176,-231,-220,-306,-279,-350,-340,-376,-356,-559,-574,-679,-663,-636,-460,-491,-397,-704,-657,-854,-844,-819,-819,-897,-896,-1343,-1252,-29988,-29989,-29989,-29990]} 1. d4 {[%emt 0:00:04]} d5 {[%emt 0:00:09]} 2. Nf3 {[%emt 0:00:43]} e6 {[%emt 0:01:44]} 3. c4 {[%emt 0:00:54]} a6 {[%emt 0:00:06]} 4. cxd5 {[%emt 0:01:16]} exd5 {[%emt 0:00:07]} 5. Nc3 {[%emt 0:00:03]} h6 {[%emt 0:02:10]} 6. Bf4 {[%emt 0:04:05] D31: Queen's Gambit Declined: Semi-Slav without ...Nf6 (+ Marshall Gambit and Noteboom) and Exchange Variation lines without ...Nf6.} Nf6 {[%emt 0:00:50]} 7. e3 {[%emt 0:00:20]} Bd6 {[%emt 0:00:40]} 8. Bxd6 {[%emt 0:02:52] White has an edge.} Qxd6 {[%emt 0:00:08]} 9. Qc2 {[%emt 0:00:11]} O-O {[%emt 0:05:39]} 10. Bd3 {[%emt 0:00:43]} Bg4 {[%emt 0:17:31]} 11. Ne5 {[%emt 0:02:27]} c5 {[%emt 0:00:18]} (11... Be6 $11 {might be stronger.}) 12. Nxg4 $16 {[%emt 0:01:05]} Nxg4 {[%emt 0:03:23]} 13. dxc5 {[%emt 0:00:25]} Qxc5 {[%emt 0:00:23] [#]} 14. Ne2 $146 {[%emt 0:03:14]} ({Predecessor:} 14. Rd1 Rd8 15. Be2 Nf6 16. O-O Nc6 17. Qf5 Qb4 18. Nxd5 Rxd5 19. Rxd5 Ne7 {0-1 (19) Gordievsky,D (2559)-Fedoseev,V (2678) Chess.com INT 2020}) 14... Qd6 {[%emt 0:04:10]} 15. h3 {[%emt 0:25:37]} Ne5 {[%emt 0:02:37]} 16. O-O {[%emt 0:01:04]} Nbc6 {[%emt 0:01:19]} 17. a3 {[%emt 0:00:43] Inhibits Nb4.} Rac8 {[%emt 0:04:52][%cal Oc6d4]} 18. Qd2 {[%emt 0:01:36]} Rfd8 {[%emt 0:02:45]} 19. Rfd1 {[%emt 0:00:48]} Qf6 {[%emt 0:03:39]} 20. Nd4 {[%emt 0:07:26]} Nxd4 {[%emt 0:05:06]} 21. exd4 {[%emt 0:00:02]} Nc6 {[%emt 0:09:03]} 22. Be2 {[%emt 0:03:16]} Re8 {[%emt 0:02:48][%cal Oc6d4]} 23. Bf3 {[%emt 0:00:21] Black keeps a firm grip on the game.} (23. Rac1 $15) 23... Nxd4 $1 $17 {[%emt 0:01:57] Black is more active.} 24. Qxd4 {[%emt 0:07:53] [#]} (24. Bxd5 $17 Ne2+ 25. Kh2 (25. Kh1 $2 Qxf2 26. Qb4 Re3 $19)) 24... Re1+ $3 $19 {[%emt 0:00:26][%mdl 512]} 25. Kh2 {[%emt 0:00:02]} Qxd4 {[%emt 0:00:07][%mdl 64] Deflection} 26. Rxd4 {[%emt 0:00:02]} Rxa1 {[%emt 0:00:11]} 27. Rxd5 {[%emt 0:00:02][%mdl 4096] Endgame KRR-KRB} Rac1 {[%emt 0:14:30]} 28. Rd7 {[%emt 0:03:33]} b5 {[%emt 0:03:18] Strongly threatening ...R1c2.} 29. Bb7 {[%emt 0:03:17]} Rb8 {[%emt 0:00:28]} 30. Bd5 {[%emt 0:07:38]} Rc2 {[%emt 0:02:43]} 31. Rxf7 {[%emt 0:02:01]} Kh8 {[%emt 0:00:30]} 32. Ra7 {[%emt 0:09:24]} Rxb2 {[%emt 0:06:32]} 33. Rxa6 {[%emt 0:02:43]} Rxf2 {[%emt 0:00:04]} 34. Ra5 {[%emt 0:01:08]} Rc2 {[%emt 0:02:06]} 35. Be4 {[%emt 0:01:44]} Rc3 {[%emt 0:00:36]} 36. Bf5 {[%emt 0:00:29]} Rc7 {[%emt 0:02:11][%cal Bc3c7,Bc7b7,Bb7b6][%mdl 32]} 37. Bd3 {[%emt 0:00:44] [#]} Rcb7 $1 {[%emt 0:00:14]} 38. Be4 {[%emt 0:02:36] [#]} Rb6 {[%emt 0:00:04]} 39. Bf3 {[%emt 0:01:03]} g6 {[%emt 0:01:24][%cal Bg7g6,Bg6g5][%mdl 32]} 40. h4 {[%emt 0:00:28]} Kg7 {[%emt 0:00:24]} 41. Kg3 {[%emt 0:03:39]} Kf6 {[%emt 0:01:17]} 42. h5 {[%emt 0:00:55]} (42. Be2 {might work better.}) 42... g5 {[%emt 0:01:24]} 43. Ra7 {[%emt 0:00:25]} Ke5 {[%emt 0:00:12]} 44. Kg4 {[%emt 0:01:49]} Rd8 {[%emt 0:00:14] Hoping for ...Rd4+.} 45. Re7+ {[%emt 0:00:16]} Kd4 {[%emt 0:00:58]} 46. Re1 {[%emt 0:01:50]} (46. g3 $142) 46... Kc3 {[%emt 0:00:26]} 47. Rb1 {[%emt 0:00:12]} Rd4+ {[%emt 0:00:27]} 48. Kf5 {[%emt 0:00:24]} Kc2 {[%emt 0:01:04]} 49. Re1 {[%emt 0:00:29]} Kb2 {[%emt 0:00:38]} 50. Re7 $2 {[%emt 0:00:26]} (50. Re2+ Kxa3 51. Ke5) 50... Kxa3 {[%emt 0:00:17] aiming for ...b4.} 51. Ke5 {[%emt 0:00:21]} Rdd6 {[%emt 0:00:50]} 52. Bd5 {[%emt 0:01:08]} b4 {[%emt 0:00:21][%cal Bb5b4,Bb4b3][%mdl 32]} 53. Be4 {[%emt 0:00:31]} b3 {[%emt 0:00:07]} 54. Ra7+ {[%emt 0:00:17]} Kb4 {[%emt 0:00:37] ( -> ...Re6+)} 55. Rg7 {[%emt 0:00:02]} Re6+ {[%emt 0:00:34]} 56. Kf5 {[%emt 0:00:13] [#]} Rxe4 $1 {[%emt 0:00:01] Weighted Error Value: White=0.56/Black=0.11 (very precise)} 0-1

[Event "32nd NATO Championship 2022"]
[Site "Tartu"]
[Date "2022.06.28"]
[Round "3.2"]
[White "Pedersen, Finn"]
[Black "Bohn, Ulrich"]
[Result "1/2-1/2"]
[ECO "A41"]
[WhiteElo "2300"]
[BlackElo "2168"]
[Annotator "TA"]
[PlyCount "67"]
[EventDate "2022.06.27"]
[EventType "swiss"]
[EventCountry "EST"]
[SourceTitle "playchess.com"]
[Source "ChessBase"]
[SourceQuality "1"]
[TimeControl "5400+30"]

{[%evp 9,67,0,8,0,11,2,17,8,33,0,45,0,0,0,0,0,0,0,-2,-1,0,-6,0,0,0,0,0,0,0,0,10,13,10,0,0,0,22,16,13,37,117,0,0,8,8,0,0,0,0,0,0,0,0,0,0,0,0,0,0,0]} 1. Nf3 {[%emt 0:00:10]} g6 {[%emt 0:00:23]} 2. d4 {[%emt 0:01:25]} Bg7 {[%emt 0:00:07]} 3. c3 {[%emt 0:03:02]} d6 {[%emt 0:04:00]} 4. Bf4 {[%emt 0:00:55]} Nd7 {[%emt 0:01:07]} 5. e4 {[%emt 0:01:06]} e5 {[%emt 0:01:26]} 6. dxe5 {[%emt 0:00:18] A41: 1 d4 d6: Tartakower System and Modern Defence.} (6. Bg3 {seems wilder.} Ngf6 7. Nbd2 O-O 8. Bd3) 6... Nxe5 {[%emt 0:02:06]} 7. Nxe5 {[%emt 0:01:50]} dxe5 {[%emt 0:00:08]} 8. Qxd8+ {[%emt 0:00:14]} Kxd8 {[%emt 0:00:04][%cal Be8d8,Bd8e7,Be7e6][%mdl 32]} 9. Be3 {[%emt 0:00:18]} Be6 {[%emt 0:00:47]} 10. Nd2 {[%emt 0:00:27]} Bh6 {[%emt 0:02:37]} 11. Bxh6 {[%emt 0:01:28]} Nxh6 {[%emt 0:00:03]} 12. Bc4 {[%emt 0:01:28]} Ke7 {[%emt 0:00:31]} 13. Bxe6 {[%emt 0:01:02]} Kxe6 {[%emt 0:00:13]} 14. f3 {[%emt 0:01:21]} Rad8 {[%emt 0:01:36] [#]} 15. Ke2 $146 {[%emt 0:01:36]} ({Predecessor:} 15. O-O-O f6 16. Nc4 Nf7 17. Rxd8 Rxd8 18. Rd1 Rf8 19. Kd2 f5 20. exf5+ gxf5 21. Re1 {0-1 (51) Sole Gonzalez,E (1999)-Parals Marce,L (2071) Barcelona 2018}) 15... Rd7 {[%emt 0:02:28]} 16. Nb3 {[%emt 0:01:06] [#] Strongly threatening Nc5+.} b6 {[%emt 0:00:11] Against Nc5+} 17. Rhd1 {[%emt 0:00:14]} Rhd8 {[%emt 0:00:05]} 18. Rxd7 {[%emt 0:00:13]} Rxd7 $11 {[%emt 0:00:01][%mdl 4096] Endgame KRN-KRN} 19. a4 {[%emt 0:01:46]} a5 {[%emt 0:00:34]} 20. Nd2 {[%emt 0:01:11]} Ng8 {[%emt 0:47:13]} 21. b4 {[%emt 0:03:52]} axb4 {[%emt 0:01:47]} 22. cxb4 {[%emt 0:00:07]} Ne7 $1 {[%emt 0:00:15]} 23. Rc1 {[%emt 0:13:30]} Rd4 $1 {[%emt 0:05:51]} 24. Nc4 {[%emt 0:07:26]} c6 {[%emt 0:04:10]} (24... f5 $14) 25. b5 {[%emt 0:08:19]} ({Don't do} 25. Nxb6 Rxb4 26. a5 Rb2+ 27. Kd3 Ra2 $14) (25. a5 $16 bxa5 26. bxa5) 25... cxb5 {[%emt 0:03:35] The position is equal.} 26. axb5 {[%emt 0:00:14]} f5 {[%emt 0:06:51]} 27. Ke3 {[%emt 0:03:46][%cal Oc4e5]} fxe4 {[%emt 0:00:20]} 28. fxe4 {[%emt 0:00:42]} Nc8 {[%emt 0:03:14]} 29. h4 {[%emt 0:03:29]} Na7 {[%emt 0:00:21]} 30. Nxb6 {[%emt 0:00:43] [#] Rb1 is the strong threat.} Nxb5 {[%emt 0:00:24]} 31. Nc4 {[%emt 0:05:09][%cal Oc4e5]} Nd6 {[%emt 0:00:52]} 32. Nxd6 {[%emt 0:00:12]} Rxd6 {[%emt 0:00:27]} 33. Rc7 {[%emt 0:00:39]} h5 {[%emt 0:00:12]} 34. Rc3 {[%emt 0:03:02] Weighted Error Value: White=0.11 (very precise) /Black=0.06 (flawless)} 1/2-1/2

[Event "32nd NATO Championship 2022"]
[Site "Tartu"]
[Date "2022.06.28"]
[Round "3.3"]
[White "Keough, Robert"]
[Black "Pavlidis, Anastasios"]
[Result "0-1"]
[ECO "B07"]
[WhiteElo "2074"]
[BlackElo "2296"]
[Annotator "TA"]
[PlyCount "86"]
[EventDate "2022.06.27"]
[EventType "swiss"]
[EventCountry "EST"]
[SourceTitle "playchess.com"]
[Source "ChessBase"]
[SourceQuality "1"]
[TimeControl "5400+30"]

{[%evp 11,86,34,40,12,12,12,9,0,8,-51,-47,-92,-48,-37,-29,-84,-81,-88,-86,-66,-66,-83,-91,-104,-106,-131,-134,-131,-124,-148,-142,-146,-141,-142,-133,-316,-325,-317,-305,-300,-299,-328,-346,-369,-335,-431,-433,-381,-323,-392,-371,-461,-442,-590,-578,-523,-548,-720,-714,-988,-985,-1184,-1189,-1186,-1168,-1145,-1132,-1746,-1647,-1860,-1855,-1749,-1820,-1952,-1782,-1387,-1292]} 1. e4 {[%emt 0:00:02]} d6 {[%emt 0:00:17]} 2. d4 {[%emt 0:00:17]} Nf6 {[%emt 0:00:12]} 3. Nc3 {[%emt 0:00:51]} Nbd7 {[%emt 0:00:21]} 4. f4 {[%emt 0:00:55]} e5 {[%emt 0:01:33]} 5. Nf3 {[%emt 0:00:37]} exd4 {[%emt 0:01:27]} 6. Qxd4 {[%emt 0:01:38]} c6 {[%emt 0:01:06][%cal Od6d5]} 7. Be2 {[%emt 0:09:47] 7.Bd2 gains popularity. B07: Pirc Defence: Miscellaneous Systems.} d5 {[%emt 0:12:21]} 8. exd5 {[%emt 0:09:10]} Bc5 {[%emt 0:00:18]} 9. Qd3 {[%emt 0:01:44] The position is equal.} O-O {[%emt 0:00:59]} 10. d6 {[%emt 0:09:46] [#]} ({White should play} 10. dxc6 $11 bxc6 11. Bd2) 10... Nb6 $146 {[%emt 0:11:55]} (10... Re8 {is more complex.} 11. Bd2 Re6 12. f5 Rxd6 13. Qc4 b5) ({Predecessor:} 10... Re8 11. Na4 Qa5+ 12. Nc3 Ng4 13. Rf1 Ne3 14. Rf2 Nd5 15. Rf1 Bxd6 16. Nd4 Nc5 {½-½ (24) Watson,S-Morrison,M (1756) Bournemouth 2016}) 11. Be3 {[%emt 0:12:48]} Bxe3 {[%emt 0:12:55]} 12. Qxe3 {[%emt 0:00:29]} Qxd6 {[%emt 0:06:19]} 13. Ne5 {[%emt 0:03:45]} (13. Qe5 $11 Qd8 14. Qd4) 13... Nfd5 {[%emt 0:05:32]} 14. Qd2 {[%emt 0:02:02]} f6 {[%emt 0:02:11]} 15. Nxd5 {[%emt 0:03:34]} Qxd5 {[%emt 0:08:32]} 16. Qxd5+ {[%emt 0:00:41]} Nxd5 {[%emt 0:00:19]} 17. Nd3 {[%emt 0:00:53] [#]} Ne3 $1 {[%emt 0:03:48]} 18. Kd2 {[%emt 0:00:52]} Nxg2 {[%emt 0:01:48] Black is more active.} 19. h4 {[%emt 0:02:21]} Bf5 {[%emt 0:01:03]} 20. Rh2 {[%emt 0:12:13]} Bxd3 {[%emt 0:00:28]} 21. Rxg2 {[%emt 0:00:06] [#]} Bxe2 {[%emt 0:01:56]} 22. Rxe2 $17 {[%emt 0:05:16][%mdl 4096] Endgame KRR-KRR} Rfe8 {[%emt 0:00:55]} 23. Rg2 $2 {[%emt 0:02:05] Loses the game.} (23. h5 $17) 23... Rad8+ $19 {[%emt 0:00:09]} 24. Kc3 {[%emt 0:00:53]} Re3+ {[%emt 0:00:12]} 25. Kb4 {[%emt 0:00:16]} Re4+ {[%emt 0:00:43]} 26. c4 {[%emt 0:00:09]} Rxf4 {[%emt 0:00:38]} 27. Re1 {[%emt 0:01:07]} Rd7 {[%emt 0:05:17] Inhibits Re7.} 28. Re8+ {[%emt 0:02:16]} Kf7 {[%emt 0:00:14]} 29. Ra8 {[%emt 0:00:04]} b6 {[%emt 0:05:37]} 30. h5 {[%emt 0:03:03]} Rh4 {[%emt 0:00:16]} 31. h6 {[%emt 0:00:48]} Rxh6 {[%emt 0:00:20] Black is clearly winning.} 32. Rc8 {[%emt 0:00:03]} c5+ {[%emt 0:00:35]} 33. Kb5 {[%emt 0:00:04]} f5 {[%emt 0:00:31][%cal Bf6f5,Bf5f4,Bf4f3,Bf3f2][%mdl 32]} 34. Re2 {[%emt 0:00:53]} f4 {[%emt 0:01:16]} 35. Ree8 {[%emt 0:00:48]} Rf6 {[%emt 0:00:16] ...f3 is the strong threat.} 36. a4 {[%emt 0:03:34]} f3 {[%emt 0:01:16] And now ...f2 would win.} 37. Re1 {[%emt 0:00:08]} f2 {[%emt 0:00:29]} 38. Rf1 {[%emt 0:00:05]} Re7 {[%emt 0:00:26] Strongly threatening ...Re1.} 39. a5 {[%emt 0:00:47]} Re1 {[%emt 0:00:27]} 40. Rc7+ {[%emt 0:00:10]} Kg6 {[%emt 0:00:18]} 41. Rxf2 {[%emt 0:00:34]} Rxf2 {[%emt 0:00:18]} 42. axb6 {[%emt 0:00:03]} Rxb2+ {[%emt 0:00:22]} 43. Kxc5 {[%emt 0:00:05]} axb6+ {[%emt 0:00:10] Weighted Error Value: White=0.53/Black=0.04 (flawless)} 0-1

[Event "32nd NATO Championship 2022"]
[Site "Tartu"]
[Date "2022.06.28"]
[Round "3.4"]
[White "Wang, Eigen"]
[Black "Pavlidou, Ekaterini"]
[Result "1-0"]
[ECO "E52"]
[WhiteElo "2269"]
[BlackElo "2171"]
[Annotator "TA"]
[PlyCount "55"]
[EventDate "2022.06.27"]
[EventType "swiss"]
[EventCountry "EST"]
[SourceTitle "playchess.com"]
[Source "ChessBase"]
[SourceQuality "1"]
[TimeControl "5400+30"]

{[%evp 15,55,0,-8,0,21,12,30,25,50,58,55,45,47,42,44,40,113,90,220,227,203,89,148,131,429,259,248,255,260,250,237,221,360,352,518,512,937,939,1647,1612,1362,1011]} 1. d4 {[%emt 0:00:09]} Nf6 {[%emt 0:00:34]} 2. c4 {[%emt 0:00:06]} e6 {[%emt 0:00:09]} 3. Nc3 {[%emt 0:00:08]} Bb4 {[%emt 0:01:26]} 4. Bd2 {[%emt 0:00:56]} O-O {[%emt 0:01:25]} 5. e3 {[%emt 0:00:36]} b6 {[%emt 0:02:53]} 6. Nf3 {[%emt 0:00:47]} Bb7 {[%emt 0:00:37]} 7. Bd3 {[%emt 0:00:12]} d5 {[%emt 0:01:07]} 8. cxd5 $1 {[%emt 0:00:56] 8.cxd5 is better than 8.0-0.} exd5 {[%emt 0:00:13]} 9. Ne5 {[%emt 0:00:58] E52: Nimzo-Indian: Rubinstein: 4...0-0 5 Nf3 d5 6 Bd3 b6.} a6 {[%emt 0:09:47]} 10. O-O {[%emt 0:01:00]} Nbd7 {[%emt 0:15:51]} 11. f4 {[%emt 0:02:03] White has an edge.} c5 {[%emt 0:30:14]} 12. a3 {[%emt 0:07:07]} Bxc3 {[%emt 0:07:11]} 13. Bxc3 {[%emt 0:00:29]} c4 {[%emt 0:03:41]} 14. Bf5 {[%emt 0:02:30]} Re8 {[%emt 0:03:23] [#]} 15. g4 $146 {[%emt 0:17:54][%cal Bg2g4,Bg4g5][%mdl 32]} ({Predecessor:} 15. Bxd7 Nxd7 16. Qh5 Rf8 17. Nxd7 Qxd7 18. f5 f6 19. Rf3 {½-½ (19) Ilivitzki,G-Vladimirov,B Sverdlovsk 1957}) 15... Nf8 {[%emt 0:09:43]} (15... Bc8 $14) 16. g5 $16 {[%emt 0:02:18] White is much more active.} Ne4 {[%emt 0:05:08]} (16... N6d7 $16) 17. Bxe4 $18 {[%emt 0:01:51]} dxe4 {[%emt 0:00:02] [#]} 18. d5 {[%emt 0:05:49]} ({Don't take} 18. Nxc4 $6 Rc8 $16) (18. Qh5 $1 $18 {[%cal Rh5f7] is more deadly.} Re7 19. f5 (19. Nxc4 Bd5 $16)) 18... b5 {[%emt 0:03:42]} ({Black should try} 18... Qxd5 19. Qh5 Re7) 19. Qh5 {[%emt 0:03:04]} Bxd5 {[%emt 0:01:20][%mdl 8192]} (19... Qxd5 $16 {might work better.} 20. Rad1 Rxe5) 20. Rad1 {[%emt 0:01:07] And now Ng4 would win.} Rxe5 {[%emt 0:00:55]} 21. Bxe5 {[%emt 0:00:19] Strongly threatening Bc3.} ({Not} 21. fxe5 Qd7 $16) 21... Ra7 {[%emt 0:00:01]} 22. Rd2 $40 {[%emt 0:04:04][%mdl 128] Black is in trouble.} Rd7 {[%emt 0:00:16]} 23. Rfd1 {[%emt 0:00:36]} Ng6 {[%emt 0:01:27]} (23... a5 $142 24. Bc3 Be6) 24. Bc3 {[%emt 0:00:26][%cal Be5c3,Bc3b4,Bb4e7][%mdl 32]} Ne7 {[%emt 0:00:53]} (24... Nf8 $142 25. f5 a5) 25. Qg4 {[%emt 0:03:15] White is clearly winning.} Qc7 {[%emt 0:00:23]} (25... Qe8 $142 26. f5 Bc6 27. Rxd7 Bxd7) 26. Bb4 {[%emt 0:01:53]} Qa7 {[%emt 0:00:38]} 27. Bxe7 {[%emt 0:00:58]} Qxe3+ {[%emt 0:00:08]} 28. Kf1 {[%emt 0:01:28] Weighted Error Value: White=0.31/Black=0.60} 1-0